Cogmind - Beta 17 @@@ ROGUE MODE // 2026.07.12 @ 04:03:20 Player: alice_fexa Result: Destroyed by D-53 Grenadier with Mini Grenade Launcher Performance ------------- Evolutions (0) 0 Regions Visited (2) 400 Robots Destroyed (20) 100 Value Destroyed (279) 279 Prototype IDs (0) 0 Alien Tech Used (0) 0 Bonus (4923) 4923 TOTAL SCORE: 5702 Bonus ------- Prayed to X0-1V1 5000 Major X0-1V1 Interference 100 Friendly Fire -177 Cogmind --------- Core Integrity 0/250 Matter 112/300 Energy 76/100 System Corruption 2% Temperature Cool (0) Movement Treading (240) Ox1 Location -10/Mines Parts ------- > --- POWER (1) -------- (None) > --- PROPULSION (2) --- Light Treads Light Treads > --- UTILITY (2) ------ High-capacity Storage Unit Targeting Computer > --- WEAPON (2) ------- Assault Rifle Assault Rifle > --- INVENTORY (20) --- Ion Engine Light Ion Engine Improved Heat Sink High-capacity Matter Pod (200) X0-1V1's Piety Tracker Particle Gun Assault Rifle Assault Rifle Assault Rifle Assault Rifle Assault Rifle Assault Rifle Hammer Peak State ------------ > --- POWER ------------ Light Ion Engine > --- PROPULSION ------- Light Treads Wheel > --- UTILITY ---------- Improved Heat Sink High-capacity Storage Unit > --- WEAPON ----------- Particle Gun Assault Rifle > --- INVENTORY -------- Ion Engine Light Ion Engine Light Ion Engine Light Treads Light Treads Medium Laser Beam Cannon Assault Rifle Assault Rifle Assault Rifle Assault Rifle Assault Rifle Assault Rifle Assault Rifle Assault Rifle Light Assault Rifle Light Assault Rifle Light Assault Rifle Light Assault Rifle Grenade Launcher [Rating: 12] Favorites ----------- Power Light Ion Engine Engine Light Ion Engine Propulsion Light Treads Treads Light Treads Wheel Wheel Utility High-capacity Storage Unit Device Improved Heat Sink Storage High-capacity Storage Unit Processor Targeting Computer Weapon Assault Rifle Energy Gun Particle Gun Ballistic Gun Assault Rifle Launcher Grenade Launcher Build | -11 -10 -10 ------- Run | Yrd Mat Min Slots Evolved . | . . . Power . | . . . Propulsion . | . . . Utility . | . . . Weapon . | . . . Parts Attached 22 | 6 10 6 Power 4 | 1 2 1 Engine 4 | 1 2 1 Core . | . . . Reactor . | . . . Propulsion 5 | 2 2 1 Treads 3 | 2 . 1 Leg . | . . . Wheel 2 | . 2 . Hover . | . . . Flight . | . . . Utility 4 | 1 3 . Device 1 | . 1 . Storage 2 | 1 1 . Processor 1 | . 1 . Hackware . | . . . Protection . | . . . Artifact . | . . . Weapon 9 | 2 3 4 Energy Gun 1 | . 1 . Energy Cannon . | . . . Ballistic Gun 6 | 2 2 2 Ballistic Cannon . | . . . Launcher 2 | . . 2 Special Weapon . | . . . Impact Weapon . | . . . Slashing Weapon . | . . . Piercing Weapon . | . . . Special Melee Weapon . | . . . Unidentified Prototypes . | . . . Parts Lost 8 | . . 8 Power 2 | . . 2 Propulsion 2 | . . 2 Utility . | . . . Weapon 4 | . . 4 Highest Loss Streak 5 | . . 5 To Critical Strikes . | . . . Average Backups 13 | 1 14 17 Power 2 | . 2 2 Propulsion 1 | . 1 1 Utility . | . . 3 Weapon 9 | . 9 10 Tool/Special . | . . . Unused Backups 19 | . 8 11 Power 2 | . . 2 Propulsion . | . . . Utility 3 | . 1 2 Weapon 14 | . 7 7 Tool/Special . | . . . Average Slot Usage (%) 98 | . 99 94 Engine 13 | . 14 11 Treads 18 | . 18 14 Wheel 9 | . 9 11 Device 6 | . 7 . Storage 14 | . 14 14 Processor 6 | . 6 14 Energy Gun 6 | . 7 . Ballistic Gun 21 | . 20 24 Peak Build Rating 12 | 6 12 10 Average Rating 9 | 5 9 9 On Entrance 5 | . 6 10 Avg Prop Armor Cover (%) 11 | . 11 11 Naked Turns . | . . . Heaviest Build 49 | 11 49 47 Greatest Support 40 | 40 40 10 Greatest Overweight (x) 4 | 1 4 4 Average Overweight (x) 2 | . 2 4 Largest Inventory Capacity 20 | 8 20 20 Average Capacity 15 | 7 15 20 Most Carried 20 | 2 20 20 Average Carried 13 | 1 14 17 Final Capacity 20 | 8 20 20 Final Carried 20 | 2 20 13 Class Distribution -------------------- 100% | Mutant Dominant Class ---------------- Mutant | -10/Materials Mutant | -10/Mines Resources | -11 -10 -10 ----------- Run | Yrd Mat Min Matter Collected 836 | 245 552 39 Remotely . | . . . Salvage Created 694 | . 624 70 Parts 47 | . 47 . Haulers Intercepted 2 | . 2 . Recyclers Shooed 1 | . 1 . Parts Field Recycled . | . . . Retrieved Matter . | . . . Parts Self-Destructed . | . . . Prevented . | . . . Parts Restored . | . . . Kills | -11 -10 -10 ------- Run | Yrd Mat Min Combat Hostiles Destroyed 28 | . 8 20 Guns 10 | . 8 2 AOE 18 | . . 18 Classes Destroyed 7 | . 6 1 Worker 5 | . 5 . Hauler 2 | . 2 . Recycler 2 | . 2 . Watcher 2 | . 2 . Swarmer 3 | . 3 . Grunt 5 | . 5 . Assembled 20 | . . 20 Thug 1 | . . 1 Best Kill Streak 20 | . 5 20 Combat Bots Only 20 | . 2 20 Max Kills in Single Turn 6 | . 2 6 Gunslinging . | . . . Exploded 6 | . . 6 Melee . | . . . Uniques/NPCs Destroyed . | . . . Combat | -11 -10 -10 -------- Run | Yrd Mat Min Hostile Shots Fired 75 | . 31 44 Missed 21 | . 8 13 Hits 54 | . 23 31 Projectile 54 | . 23 31 AOE 12 | . . 12 Damage Taken 1046 | . 282 764 Core 278 | . 69 209 Absorbed by Shields . | . . . Core Remaining (%) 100 | 100 . . Volleys Fired 61 | 5 42 14 Largest 2 | 2 2 2 Hottest 85 | 40 85 60 Shots Fired 121 | 10 85 26 Gun 113 | 10 85 18 Cannon . | . . . Launcher 8 | . . 8 Special . | . . . Kinetic 93 | 10 65 18 Thermal 20 | . 20 . Explosive 8 | . . 8 Electromagnetic . | . . . Robot Hit Streak 15 | 4 15 12 Robot Miss Streak 4 | 4 3 2 Penetration Max . | . . . Secondary Targets 1 | . 1 . Max Gunslinging Chain 1 | . 1 . Shots Hit Robots 78 | 4 58 16 Core Hits 81 | 1 30 50 Critical Kills . | . . . Critical Parts Destroyed . | . . . Critical Strikes . | . . . Melee Attacks . | . . . Impact . | . . . Slashing . | . . . Piercing . | . . . Sneak Attacks . | . . . Combat Hostiles . | . . . Follow-up Attacks . | . . . Damage Inflicted 2256 | 54 790 1412 Guns 1002 | 54 790 158 Cannons . | . . . Explosions 1254 | . . 1254 Melee . | . . . Ramming . | . . . Kinetic 772 | 54 560 158 Thermal 230 | . 230 . Explosive 1254 | . . 1254 Electromagnetic . | . . . Impact . | . . . Slashing . | . . . Piercing . | . . . Highest Corruption 2 | . 2 2 Average Corruption 2 | . 2 2 Corruption Purged . | . . . Corruption Blocked . | . . . Effects 24 | . 21 3 Message Errors 10 | . 10 . Matter Fused 7 | . 5 2 Heat Flow Errors 1 | . 1 . Parts Rejected 1 | . . 1 Data Loss (minor) 2 | . 2 . Misfires 3 | . 3 . Overload Shots . | . . . Overflow Damage 43 | . . 43 Projectiles . | . . . Explosions 43 | . . 43 Melee . | . . . Knockbacks . | . . . Impact . | . . . Kinetic . | . . . Secondary . | . . . Self-Inflicted Damage 27 | . . 27 Shots 1 | . . 1 Rammed . | . . . Targets Rammed . | . . . Kicked . | . . . Crushed . | . . . Highest Temperature 226 | . 226 . Average Temperature 49 | . 49 . Received Heat Transfer 155 | . 135 20 Siege Activations . | . . . Martial Activations . | . . . Shielding Activations . | . . . Robots Disrupted . | . . . Combat Hostiles . | . . . Robots Corrupted . | . . . Combat Hostiles . | . . . Parts Fried . | . . . Impact Corruptions . | . . . Robots Melted . | . . . Combat Hostiles . | . . . Parts Melted . | . . . Heat Transferred 555 | . 555 . Parts Sabotaged . | . . . Parts Stolen . | . . . Parts Stripped . | . . . Power Chain Reactions . | . . . Alert | -11 -10 -10 ------- Run | Yrd Mat Min Maximum Alert Level . | . . . Low Security (%) 100 | 100 100 100 Level 1 . | . . . Level 2 . | . . . Level 3 . | . . . Level 4 . | . . . Level 5 . | . . . High Security . | . . . Max Security . | . . . Peak Influence 102 | . 102 55 Initial 37 | . . 37 Average 15 | . 16 20 Influence Increases 445 | . 410 35 Destroy 0b10 Robot/C 160 | . 160 . Destroy 0b10 Robot/NC 55 | . 55 . Destroy Leader 48 | . 48 . Successful Hack 29 | . 29 . Destroy Structure 36 | . 1 35 Lose Combat Pursuer 15 | . 15 . Miscellaneous 102 | . 102 . Influence Decreases 445 | . 312 133 Entered New Map 61 | . . 61 Time Decay 354 | . 312 42 Lost Part 30 | . . 30 Squads Dispatched 1 | . 1 . Investigation . | . . . Extermination . | . . . Reinforcement 1 | . 1 . Assault . | . . . Garrison . | . . . Intercept . | . . . Searches Triggered . | . . . Construction Impeded . | . . . Haulers Reinforced . | . . . Active Scanning Responses . | . . . Cargo Convoy Interrupts . | . . . Stealth | -11 -10 -10 --------- Run | Yrd Mat Min Distress Signals 1 | . 1 . Communications Jammed . | . . . Distress Signals . | . . . Times Spotted 39 | . 16 23 Peak Tracking Total 20 | . 3 20 Tactical Retreats 1 | . 1 . Traps | -11 -10 -10 ------- Run | Yrd Mat Min Traps Triggered 1 | . 1 . Indirectly . | . . . Trap Hack Attempts . | . . . Triggered . | . . . Disarmed . | . . . Reprogrammed . | . . . Reused . | . . . Traps Extracted . | . . . Installed . | . . . Triggered . | . . . Machines | -11 -10 -10 ---------- Run | Yrd Mat Min Machines Disabled . | . . . Max in Single Turn . | . . . Machines Repaired . | . . . Machines Dismantled . | . . . Machines Sabotaged . | . . . Overloaded Fab Kills . | . . . Hacking | -11 -10 -10 --------- Run | Yrd Mat Min Machines Accessed 8 | . 8 . Terminals 6 | . 6 . Fabricators . | . . . Repair Stations . | . . . Recycling Units 2 | . 2 . Scanalyzers . | . . . Garrison Access . | . . . Total Hacks 27 | . 27 . Successful 15 | . 15 . Failed 12 | . 12 . Catastrophic . | . . . Database Lockouts . | . . . Manual 23 | . 23 . Terminals 24 | . 24 . Fabricators . | . . . Repair Stations . | . . . Recycling Units 3 | . 3 . Scanalyzers . | . . . Garrison Access . | . . . Terminal Hacks 5 | . 5 . Branch Access Points 1 | . 1 . Locate Traps 4 | . 4 . Fabricator Hacks . | . . . Repair Station Hacks . | . . . Recycling Unit Hacks 2 | . 2 . Retrieve Components 2 | . 2 . Scanalyzer . | . . . Garrison Access Hacks . | . . . Unauthorized Hacks 8 | . 8 . Terminals 8 | . 8 . Botnet 3 | . 3 . Skim 5 | . 5 . Fabricators . | . . . Repair Stations . | . . . Recycling Units . | . . . Scanalyzers . | . . . Garrison Access . | . . . Data Cores Recovered . | . . . Used . | . . . Hacking Detections 4 | . 4 . Full Trace Events . | . . . Feedback Events . | . . . Feedback Blocked . | . . . Robot Schematics Acquired . | . . . Robots Built . | . . . Authchips . | . . . Time . | . . . Total Robot Build Rating . | . . . Part Schematics Acquired . | . . . Parts Built . | . . . Authchips . | . . . Time . | . . . Total Part Build Rating . | . . . Part Studies Acquired . | . . . Parts Repaired . | . . . Time . | . . . Parts Recycled . | . . . Recycled Matter . | . . . Retrieved Matter . | . . . Retrieved Components 4 | . 4 . Parts Scanalyzed . | . . . Part Schematics Acquired . | . . . Parts Damaged . | . . . Bothacking | -11 -10 -10 ------------ Run | Yrd Mat Min Used RIF Installer . | . . . Robots Hacked . | . . . Non-combat . | . . . Combat . | . . . Robot Hacks Applied . | . . . Relay Couplers Released . | . . . Fabnet Peak Effective % . | . . . Robots Rewired . | . . . Allies Hacked . | . . . Hacks Repelled . | . . . Allies | -11 -10 -10 -------- Run | Yrd Mat Min Total Allies 2 | . . 2 Largest Group 1 | . . 1 Highest-Rated Group 31 | . . 31 Highest-Rated Ally 31 | . . 31 Total Orders . | . . . Ally Attacks 5 | . . 5 Total Damage 21 | . . 21 Kills . | . . . Allies Corrupted . | . . . Allies Melted . | . . . X0-1V1 Amusement Gains 27 | . 2 25 Good Acts 1 | . . 1 Bad Acts 1 | . 1 . Intel | -11 -10 -10 ------- Run | Yrd Mat Min Active Infowar (turns) . | . . . Robot Analysis Total . | . . . Derelict Logs Recovered . | . . . Drone Launches . | . . . Drone Recoveries . | . . . Exploration | -11 -10 -10 ------------- Run | Yrd Mat Min Turns Passed 1638 | 89 1437 112 Spaces Moved 841 | 44 756 41 Core 8 | 8 . . Treads 305 | 36 269 . Legs . | . . . Wheels 528 | . 487 41 Hover . | . . . Flight . | . . . Fastest Speed 50 | 50 140 140 Average Speed 146 | 143 147 140 Slowest Speed 240 | 160 240 140 Overloaded Moves . | . . . Propulsion Burnouts . | . . . Robots Hopped . | . . . Potential Cave-ins . | . . . Cave-ins Triggered . | . . . Exploration Rate (%) 36 | 3 94 13 Regions Visited 2 Branch Regions 1 Pre-discovered Areas 1 | . 1 . Known Exits Taken 1 | . 1 . Unknown Exits Taken 1 | 1 . . Scrap Searched . | . . . Spaces Dug . | . . . Terrain Destroyed 49 | . . 49 Melee . | . . . Projectile . | . . . AOE 49 | . . 49 Terrain Rammed . | . . . Walls Destroyed . | . . . Machines Disabled . | . . . Actions | -11 -10 -10 --------- Run | Yrd Mat Min Total 1137 | 58 1009 70 Wait 159 | 2 154 3 Move 839 | 43 755 41 Hop . | . . . Pick Up 31 | 2 29 . Fast Attach 10 | 6 3 1 Attach 8 | . . 8 Detach 2 | . 1 1 Swap 10 | . 8 2 Drop 17 | . 17 . Fire 61 | 5 42 14 Melee . | . . . Ram . | . . . Kick . | . . . Crush . | . . . Escape Stasis . | . . . Rewire . | . . . Trap . | . . . Miscellaneous . | . . . Route ------- -11/Scrapyard -10/Materials (discovered 6 exits: *Mat x3 / *Min x2 / *Sub) -10/Mines (discovered 3 exits: Mat x2 / Sub) History --------- Turn | Location | Event 8 | -11/Scrapyard | Discovered new exit (range 15) 90 | -11/Scrapyard | Entered Materials 314 | -10/Materials | Build established: Mutant 422 | -10/Materials | Discovered new exit (range 9) 502 | -10/Materials | Discovered new exit (range 8) 691 | -10/Materials | Discovered new exit (range 12) 750 | -10/Materials | Identified exit to Mines 1111 | -10/Materials | Learned Storage emergency access door positions 1182 | -10/Materials | Learned 2 Storage zone layouts 1186 | -10/Materials | Discovered new exit (range 14) 1242 | -10/Materials | Learned location of Storage (-8) 1291 | -10/Materials | Learned Storage trap positions 1329 | -10/Materials | Identified exit to Materials 1359 | -10/Materials | Learned location of 2 exits from Subcaves 1397 | -10/Materials | Learned 2 Mines zone layouts 1447 | -10/Materials | Learned location of 2 exits from Mines 1468 | -10/Materials | Prayed at D.C.S.S. Altar Unit 1493 | -10/Materials | X0-1V1 added 0b10 threat records associated with you (minor) 1527 | -10/Materials | Entered Mines 1528 | -10/Mines | Assembled infested the area 1529 | -10/Mines | Identified exit to Subcaves 1530 | -10/Mines | Received a Mining Laser from a helpful Derelict 1591 | -10/Mines | Met a Derelict bent on vengeance 1592 | -10/Mines | Destroyed 20 combat bots 1598 | -10/Mines | Lost 3 parts (1p2w) 1625 | -10/Mines | Core integrity fell below 50% 1632 | -10/Mines | Core integrity fell below 20% 1637 | -10/Mines | X0-1V1 sent allied H-61 Shepherd (x1) 1639 | -10/Mines | Destroyed by D-53 Grenadier with Mini Grenade Launcher Last Messages --------------- 01588_ The unstable cave ceiling collapses. 01592_ Acquired 20 matter. 01598_ T-07 Excavator is excavating. 01607_ The unstable cave ceiling collapses. 01608_ System corrupted: Matter fused (-6). 01619_ C-45 Heavy ARC bursts open, deploying its payload. 01619_ D-53 Grenadier unfolds itself. 01619_ T-07 Excavator destroyed. 01627_ Lgt. Treads destroyed. 01628_ Lgt. Ion Engine destroyed. 01629_ Wheel destroyed. 01629_ Assault Rifle destroyed. 01632_ The unstable cave ceiling collapses. 01632_ D-53 Grenadier destroyed. 01633_ System corrupted: Matter fused (-8). 01633_ Assault Rifle destroyed. 01634_ The unstable cave ceiling collapses. 01637_ The cosmic winds blow in a new direction. H-61 Shepherd form resolidifies at new position. 01639_ X0-1V1 chuckles heartily! Map ----- +----------------------------------------------------+ | ???????????????????????????????????????????? | | ???????????????????????????????????????????? | | ???????????????????????????????????????????? | | ???????????????????????????????????????????? | | ???????????????????????????????????????????? | | ???????????????????????????????????????????? | | ???????????????????????????????????????????? | | ???????????????????????????????????????????? | | ???????????????????????????????????????????? | | ???????????????????????????????????????????? | | ???????????????????????????????????????????? | | ???????????????????????????????????????????? | | ???????????????????????????????????????????? | | ???????????????????????????????????????????? | | ???????????????????????????????????????????? | | ???????????????????????????????????????????? | | ???????????????????????????????????????????? | | ??????????????????????????####?????????????? | | ????????????????????????## ##????????????? | | ??????????????????????### #????????????? | | ?????????????????????## #????????????? | | ????????????????????## #????????????? | | ????????????????????# #????????????? | | ????????????????????# #????????????? | | ????????????????????# #????????????? | | ????????????????????# @ #????????????? | | ????????????????????# #????????????? | | ????????????????????# d H #????????????? | | ????????????????????## ##????????????? | | ?????????????????????# ##?????????????? | | ?????????????# ###### #####??????????????? | | ????????????# ###?#########??????? | | ?????????# ###### ### # #??????? | | ?????????????????????#% # #####??? | | ????????????????????## ##?? | | ???????????????###### < ## #?? | | ???? #### ## #?? | | ???? #### ##?? | | ???? $ # #???####??? | | ???? ########### # #?????????? | | ????????????????????##### ###?????????? | | ????????????????????????# ####??????????? | | ????????????????????????######?????????????? | | ???????????????????????????????????????????? | | ???????????????????????????????????????????? | | ???????????????????????????????????????????? | | ???????????????????????????????????????????? | | ???????????????????????????????????????????? | | ???????????????????????????????????????????? | | ???????????????????????????????????????????? | +----------------------------------------------------+ Best States ------------- Heat Dissipation 39 Energy Generation 10 Energy Capacity 125 Matter Stores 300 Matter Capacity 300 Sight Range 16 Terrain Scan Density 10 Evasion (%) 40 Targeting Accuracy 5 Recoil Reduction 2 Item Schematics ----------------- None Robot Schematics ------------------ None Fabricated ------------ Nothing Repaired ---------- Nothing Studied --------- None Alien Tech Used ----------------- None Achievements -------------- None Challenges ------------ None Game ------ Seed TeslaSubdwellerCleaver Manual? 0 Play Time 00:08:50 Cumulative 1680.3 hours Start 2026.07.12 @ 03:56:01 End 2026.07.12 @ 04:03:20 Sessions 1 Manual Loads 0 Difficulty Rogue Special Mode None Game No. 1199 Rogue 1159 Adventurer 40 Explorer 0 Win Type - Total 220 Types 104/11/74/2/2/4/16/2/1/4 Lore% 97 Gallery% 96 Achievement% 89 Wizard Run 0 Options --------- Layout 0 ASCII 0 Keyboard 0 Movement Numpad Keybinds 0 Fullscreen 0 Font 20/Terminus Map View 76x50 Zoom Use 0% Tactical HUD 1 Map Filters NONE Filters NONE Steam 1 RUN: 763aaadb-f61f-4bc6-acd9-4c330e61d9dd